[Event "Titled Tuesday Blitz November 15 Early 2022"]
[White "Bluebaum, Matthias"]
[Black "Salinas Herrera, Pablo"]
[WhiteFideId "24651516"]
[BlackFideId "3407128"]
[WhiteElo "2633"]
[BlackElo "2557"]
[Result "1-0"]
[Round "08"]
[TimeControl "180+1"]
[Date "2022.11.15"]
[WhiteClock "0:01:00"]
[BlackClock "0:00:08"]

1. d4 {[%clk 0:03:00]}  d5 {[%clk 0:02:57]} 2. c4 {[%clk 0:03:00]}  e6 {[%clk 0:02:57]} 3. Nc3 {[%clk 0:02:59]}  Nf6 {[%clk 0:02:58]} 4. cxd5 {[%clk 0:02:59]}  exd5 {[%clk 0:02:59]} 5. Bg5 {[%clk 0:02:59]}  c6 {[%clk 0:02:59]} 6. e3 {[%clk 0:03:00]}  h6 {[%clk 0:03:00]} 7. Bf4 {[%clk 0:03:00]}  Bd6 {[%clk 0:03:00]} 8. Bxd6 {[%clk 0:03:00]}  Qxd6 {[%clk 0:03:00]} 9. Bd3 {[%clk 0:03:01]}  O-O {[%clk 0:03:01]} 10. Nge2 {[%clk 0:03:01]}  Re8 {[%clk 0:03:01]} 11. O-O {[%clk 0:03:02]}  a5 {[%clk 0:02:54]} 12. Ng3 {[%clk 0:03:01]}  Be6 {[%clk 0:02:53]} 13. f3 {[%clk 0:03:00]}  Na6 {[%clk 0:02:49]} 14. Qd2 {[%clk 0:03:00]}  Nc7 {[%clk 0:02:38]} 15. Rae1 {[%clk 0:03:00]}  Rad8 {[%clk 0:02:36]} 16. Qf2 {[%clk 0:03:00]}  c5 {[%clk 0:02:32]} 17. dxc5 {[%clk 0:02:53]}  Qxc5 {[%clk 0:02:32]} 18. Rc1 {[%clk 0:02:52]}  Qd6 {[%clk 0:02:13]} 19. Nce2 {[%clk 0:02:44]}  Bd7 {[%clk 0:02:10]} 20. Nd4 {[%clk 0:02:44]}  Ne6 {[%clk 0:02:09]} 21. Ngf5 {[%clk 0:02:43]}  Qf8 {[%clk 0:01:59]} 22. Rc3 {[%clk 0:01:55]}  Nc5 {[%clk 0:01:37]} 23. Bb1 {[%clk 0:01:53]}  b6 {[%clk 0:01:36]} 24. Qh4 {[%clk 0:01:50]}  Bxf5 {[%clk 0:01:32]} 25. Nxf5 {[%clk 0:01:51]}  Re6 {[%clk 0:01:32]} 26. Nd4 {[%clk 0:01:49]}  Ree8 {[%clk 0:01:26]} 27. Re1 {[%clk 0:01:42]}  Qd6 {[%clk 0:01:18]} 28. Nf5 {[%clk 0:01:43]}  Qe5 {[%clk 0:01:18]} 29. f4 {[%clk 0:01:27]}  Qe6 {[%clk 0:01:14]} 30. Qg3 {[%clk 0:01:19]}  Nh5 {[%clk 0:01:02]} 31. Qg4 {[%clk 0:01:18]}  g6 {[%clk 0:00:55]} 32. Nxh6+ {[%clk 0:01:16]}  Kf8 {[%clk 0:00:55]} 33. f5 {[%clk 0:01:13]}  Qd7 {[%clk 0:00:29]} 34. Rf1 {[%clk 0:01:04]}  Nf6 {[%clk 0:00:25]} 35. Qh4 {[%clk 0:01:04]}  g5 {[%clk 0:00:07]} 36. Qxg5 {[%clk 0:01:04]}  Nce4 {[%clk 0:00:07]} 37. Bxe4 {[%clk 0:01:02]}  Nxe4 {[%clk 0:00:08]} 38. Qg8+ {[%clk 0:01:00]}  Ke7 {[%clk 0:00:08]} 39. Qxf7+ {[%clk 0:01:00]}  Kd6 {[%clk 0:00:09]} 40. Qg6+ {[%clk 0:01:00]}  Ke5 {[%clk 0:00:08]} 41. Ng4# {[%clk 0:01:00]} 1-0


[Site "https://www.chess.com"]

[Event "Titled Tuesday Blitz November 15 Early 2022"]
[White "Caruana, Fabiano"]
[Black "Martinez Alcantara, Jose Eduardo"]
[WhiteFideId "2020009"]
[BlackFideId "3805662"]
[WhiteElo "2847"]
[BlackElo "2705"]
[Result "1-0"]
[Round "08"]
[TimeControl "180+1"]
[Date "2022.11.15"]
[WhiteClock "0:01:04"]
[BlackClock "0:00:33"]

1. e4 {[%clk 0:03:00]}  e5 {[%clk 0:02:54]} 2. Nf3 {[%clk 0:03:01]}  Nc6 {[%clk 0:02:52]} 3. Bb5 {[%clk 0:03:01]}  a6 {[%clk 0:02:52]} 4. Ba4 {[%clk 0:03:02]}  Nf6 {[%clk 0:02:53]} 5. O-O {[%clk 0:03:02]}  Be7 {[%clk 0:02:53]} 6. Re1 {[%clk 0:03:02]}  b5 {[%clk 0:02:54]} 7. Bb3 {[%clk 0:03:03]}  d6 {[%clk 0:02:55]} 8. c3 {[%clk 0:03:03]}  O-O {[%clk 0:02:55]} 9. h3 {[%clk 0:03:03]}  Bb7 {[%clk 0:02:50]} 10. d4 {[%clk 0:03:04]}  Re8 {[%clk 0:02:51]} 11. Nbd2 {[%clk 0:03:04]}  Bf8 {[%clk 0:02:49]} 12. Bc2 {[%clk 0:03:04]}  g6 {[%clk 0:02:43]} 13. d5 {[%clk 0:03:03]}  Ne7 {[%clk 0:02:28]} 14. b3 {[%clk 0:03:02]}  c6 {[%clk 0:02:27]} 15. c4 {[%clk 0:03:02]}  a5 {[%clk 0:02:26]} 16. Bd3 {[%clk 0:03:00]}  b4 {[%clk 0:02:25]} 17. Nf1 {[%clk 0:02:58]}  Bg7 {[%clk 0:02:07]} 18. Rb1 {[%clk 0:02:51]}  cxd5 {[%clk 0:02:04]} 19. cxd5 {[%clk 0:02:50]}  Nd7 {[%clk 0:01:45]} 20. Be3 {[%clk 0:02:39]}  Nxd5 {[%clk 0:01:34]} 21. exd5 {[%clk 0:02:37]}  e4 {[%clk 0:01:35]} 22. Bg5 {[%clk 0:02:14]}  Bf6 {[%clk 0:01:35]} 23. Bxf6 {[%clk 0:02:05]}  Nxf6 {[%clk 0:01:36]} 24. Bb5 {[%clk 0:02:05]}  exf3 {[%clk 0:01:23]} 25. Bxe8 {[%clk 0:02:04]}  fxg2 {[%clk 0:01:24]} 26. Bxf7+ {[%clk 0:02:02]}  Kxf7 {[%clk 0:01:25]} 27. Ne3 {[%clk 0:01:56]}  h5 {[%clk 0:01:25]} 28. Qf3 {[%clk 0:01:53]}  Kg7 {[%clk 0:01:21]} 29. Rbd1 {[%clk 0:01:49]}  Qd7 {[%clk 0:01:21]} 30. Nc4 {[%clk 0:01:46]}  Rf8 {[%clk 0:01:19]} 31. Qxg2 {[%clk 0:01:46]}  h4 {[%clk 0:01:07]} 32. Rd4 {[%clk 0:01:33]}  Nh5 {[%clk 0:01:06]} 33. Qg4 {[%clk 0:01:19]}  Qf7 {[%clk 0:00:58]} 34. Qxh4 {[%clk 0:01:19]}  Nf6 {[%clk 0:00:40]} 35. Nxd6 {[%clk 0:01:17]}  Qd7 {[%clk 0:00:41]} 36. Nxb7 {[%clk 0:01:15]}  Qxb7 {[%clk 0:00:42]} 37. d6 {[%clk 0:01:13]}  Rf7 {[%clk 0:00:40]} 38. Qg3 {[%clk 0:01:08]}  Nh5 {[%clk 0:00:32]} 39. Qe5+ {[%clk 0:01:08]}  Kh6 {[%clk 0:00:33]} 40. Qe3+ {[%clk 0:01:04]}  Kh7 {[%clk 0:00:33]} 41. d7 {[%clk 0:01:04]} 1-0


[Site "https://www.chess.com"]

[Event "Titled Tuesday Blitz November 15 Early 2022"]
[White "Clawitter, Craig"]
[Black "Winkels, Marcel"]
[WhiteFideId "2023105"]
[BlackFideId "1003887"]
[WhiteElo "2195"]
[BlackElo "1900"]
[Result "1-0"]
[Round "08"]
[TimeControl "180+1"]
[Date "2022.11.16"]
[WhiteClock "0:00:07"]
[BlackClock "0:00:07"]

1. e4 {[%clk 0:02:58]}  c5 {[%clk 0:02:57]} 2. Nf3 {[%clk 0:02:57]}  Nf6 {[%clk 0:02:57]} 3. e5 {[%clk 0:02:55]}  Nd5 {[%clk 0:02:56]} 4. Nc3 {[%clk 0:02:55]}  e6 {[%clk 0:02:56]} 5. Nxd5 {[%clk 0:02:55]}  exd5 {[%clk 0:02:55]} 6. d4 {[%clk 0:02:55]}  Nc6 {[%clk 0:02:54]} 7. dxc5 {[%clk 0:02:54]}  Bxc5 {[%clk 0:02:53]} 8. Qxd5 {[%clk 0:02:51]}  Qb6 {[%clk 0:02:53]} 9. Bc4 {[%clk 0:02:51]}  Bxf2+ {[%clk 0:02:51]} 10. Kd1 {[%clk 0:02:39]}  O-O {[%clk 0:02:49]} 11. Ng5 {[%clk 0:02:33]}  Qd4+ {[%clk 0:02:27]} 12. Ke2 {[%clk 0:02:23]}  d6 {[%clk 0:02:10]} 13. Qxd4 {[%clk 0:02:04]}  Bxd4 {[%clk 0:02:08]} 14. exd6 {[%clk 0:02:00]}  Bg4+ {[%clk 0:01:59]} 15. Kf1 {[%clk 0:01:45]}  Ne5 {[%clk 0:01:51]} 16. Be2 {[%clk 0:01:39]}  Rad8 {[%clk 0:01:46]} 17. c3 {[%clk 0:01:27]}  Bb6 {[%clk 0:01:39]} 18. Bf4 {[%clk 0:01:25]}  Bxe2+ {[%clk 0:01:34]} 19. Kxe2 {[%clk 0:01:25]}  Rfe8 {[%clk 0:01:34]} 20. Rad1 {[%clk 0:00:59]}  Ng6+ {[%clk 0:01:25]} 21. Kf3 {[%clk 0:00:58]}  Nxf4 {[%clk 0:01:23]} 22. Kxf4 {[%clk 0:00:58]}  Be3+ {[%clk 0:01:21]} 23. Kg4 {[%clk 0:00:54]}  Bxg5 {[%clk 0:01:19]} 24. Kxg5 {[%clk 0:00:53]}  Re6 {[%clk 0:01:16]} 25. d7 {[%clk 0:00:38]}  h6+ {[%clk 0:01:10]} 26. Kf4 {[%clk 0:00:31]}  Re7 {[%clk 0:01:04]} 27. Rhe1 {[%clk 0:00:30]}  Rxe1 {[%clk 0:01:02]} 28. Rxe1 {[%clk 0:00:31]}  Rxd7 {[%clk 0:01:02]} 29. Re8+ {[%clk 0:00:28]}  Kh7 {[%clk 0:01:01]} 30. Rb8 {[%clk 0:00:17]}  b6 {[%clk 0:01:00]} 31. c4 {[%clk 0:00:14]}  Rd2 {[%clk 0:00:59]} 32. b4 {[%clk 0:00:14]}  Rxg2 {[%clk 0:00:57]} 33. c5 {[%clk 0:00:15]}  bxc5 {[%clk 0:00:56]} 34. bxc5 {[%clk 0:00:15]}  Rxa2 {[%clk 0:00:54]} 35. c6 {[%clk 0:00:15]}  Rc2 {[%clk 0:00:53]} 36. Rc8 {[%clk 0:00:14]}  Rc4+ {[%clk 0:00:51]} 37. Ke5 {[%clk 0:00:14]}  a5 {[%clk 0:00:51]} 38. c7 {[%clk 0:00:13]}  a4 {[%clk 0:00:50]} 39. Kd6 {[%clk 0:00:13]}  a3 {[%clk 0:00:49]} 40. Ra8 {[%clk 0:00:13]}  Rc3 {[%clk 0:00:49]} 41. Rxa3 {[%clk 0:00:10]}  Rc1 {[%clk 0:00:44]} 42. Kd7 {[%clk 0:00:10]}  Rd1+ {[%clk 0:00:43]} 43. Ke7 {[%clk 0:00:09]}  Rc1 {[%clk 0:00:42]} 44. Kd8 {[%clk 0:00:09]}  Rd1+ {[%clk 0:00:41]} 45. Kc8 {[%clk 0:00:09]}  f5 {[%clk 0:00:39]} 46. Rc3 {[%clk 0:00:09]}  f4 {[%clk 0:00:36]} 47. Kb8 {[%clk 0:00:08]}  Rb1+ {[%clk 0:00:35]} 48. Ka7 {[%clk 0:00:08]}  Ra1+ {[%clk 0:00:35]} 49. Kb6 {[%clk 0:00:09]}  Rb1+ {[%clk 0:00:35]} 50. Ka5 {[%clk 0:00:09]}  Ra1+ {[%clk 0:00:34]} 51. Kb4 {[%clk 0:00:09]}  Ra8 {[%clk 0:00:33]} 52. c8=Q {[%clk 0:00:09]}  Rxc8 {[%clk 0:00:34]} 53. Rxc8 {[%clk 0:00:10]}  g5 {[%clk 0:00:33]} 54. Kc4 {[%clk 0:00:10]}  Kg6 {[%clk 0:00:32]} 55. Kd4 {[%clk 0:00:09]}  Kh5 {[%clk 0:00:33]} 56. Ke4 {[%clk 0:00:09]}  Kg4 {[%clk 0:00:33]} 57. Rf8 {[%clk 0:00:08]}  Kh3 {[%clk 0:00:33]} 58. Rh8 {[%clk 0:00:07]}  Kxh2 {[%clk 0:00:32]} 59. Rxh6+ {[%clk 0:00:07]}  Kg3 {[%clk 0:00:33]} 60. Rg6 {[%clk 0:00:07]}  g4 {[%clk 0:00:33]} 61. Kd3 {[%clk 0:00:05]}  f3 {[%clk 0:00:33]} 62. Ke3 {[%clk 0:00:05]}  Kg2 {[%clk 0:00:34]} 63. Rxg4+ {[%clk 0:00:05]}  Kh3 {[%clk 0:00:32]} 64. Kxf3 {[%clk 0:00:05]}  Kh2 {[%clk 0:00:09]} 65. Rg8 {[%clk 0:00:05]}  Kh1 {[%clk 0:00:08]} 66. Kf2 {[%clk 0:00:06]}  Kh2 {[%clk 0:00:07]} 67. Rh8# {[%clk 0:00:07]} 1-0


[Site "https://www.chess.com"]

[Event "Titled Tuesday Blitz November 15 Early 2022"]
[White "Csonka, Balazs"]
[Black "Ilkhomi, Jaloliddin"]
[WhiteFideId "742910"]
[BlackFideId "14700948"]
[WhiteElo "2404"]
[BlackElo "2045"]
[Result "0-1"]
[Round "08"]
[TimeControl "180+1"]
[Date "2022.11.16"]
[WhiteClock "0:00:03"]
[BlackClock "0:00:08"]

1. c4 {[%clk 0:03:00]}  Nf6 {[%clk 0:02:59]} 2. Nc3 {[%clk 0:03:00]}  e6 {[%clk 0:02:59]} 3. e4 {[%clk 0:02:59]}  d5 {[%clk 0:03:00]} 4. cxd5 {[%clk 0:02:55]}  exd5 {[%clk 0:03:01]} 5. e5 {[%clk 0:02:55]}  d4 {[%clk 0:03:01]} 6. exf6 {[%clk 0:02:50]}  dxc3 {[%clk 0:03:01]} 7. dxc3 {[%clk 0:02:35]}  Qxd1+ {[%clk 0:02:46]} 8. Kxd1 {[%clk 0:02:36]}  gxf6 {[%clk 0:02:46]} 9. Bf4 {[%clk 0:02:31]}  c6 {[%clk 0:02:29]} 10. Kc2 {[%clk 0:02:11]}  Bf5+ {[%clk 0:02:28]} 11. Bd3 {[%clk 0:02:10]}  Bxd3+ {[%clk 0:02:28]} 12. Kxd3 {[%clk 0:02:11]}  Nd7 {[%clk 0:02:22]} 13. Re1+ {[%clk 0:02:11]}  Kd8 {[%clk 0:02:09]} 14. Nf3 {[%clk 0:02:04]}  Nc5+ {[%clk 0:02:09]} 15. Kc2 {[%clk 0:02:03]}  Ne6 {[%clk 0:02:08]} 16. Rd1+ {[%clk 0:01:51]}  Ke8 {[%clk 0:02:08]} 17. Bg3 {[%clk 0:01:32]}  Be7 {[%clk 0:02:08]} 18. Nd4 {[%clk 0:01:31]}  Nxd4+ {[%clk 0:01:46]} 19. Rxd4 {[%clk 0:01:32]}  Rd8 {[%clk 0:01:36]} 20. Re4 {[%clk 0:01:31]}  Kf8 {[%clk 0:01:26]} 21. Rhe1 {[%clk 0:01:26]}  Rd7 {[%clk 0:01:26]} 22. Bb8 {[%clk 0:01:08]}  Bc5 {[%clk 0:01:11]} 23. R1e2 {[%clk 0:00:51]}  h5 {[%clk 0:00:55]} 24. b4 {[%clk 0:00:43]}  Bb6 {[%clk 0:00:52]} 25. c4 {[%clk 0:00:35]}  Kg7 {[%clk 0:00:52]} 26. Bg3 {[%clk 0:00:31]}  Rhd8 {[%clk 0:00:49]} 27. c5 {[%clk 0:00:22]}  Bc7 {[%clk 0:00:49]} 28. Bxc7 {[%clk 0:00:22]}  Rxc7 {[%clk 0:00:50]} 29. R2e3 {[%clk 0:00:14]}  Rcd7 {[%clk 0:00:47]} 30. Rg3+ {[%clk 0:00:14]}  Kf8 {[%clk 0:00:48]} 31. Rf4 {[%clk 0:00:09]}  Rd2+ {[%clk 0:00:34]} 32. Kb3 {[%clk 0:00:06]}  R8d3+ {[%clk 0:00:24]} 33. Rxd3 {[%clk 0:00:06]}  Rxd3+ {[%clk 0:00:25]} 34. Kc2 {[%clk 0:00:07]}  Ra3 {[%clk 0:00:18]} 35. Kb2 {[%clk 0:00:07]}  Rd3 {[%clk 0:00:19]} 36. Rxf6 {[%clk 0:00:07]}  Rd2+ {[%clk 0:00:19]} 37. Kb3 {[%clk 0:00:07]}  Ke7 {[%clk 0:00:20]} 38. Rf4 {[%clk 0:00:07]}  f6 {[%clk 0:00:17]} 39. h4 {[%clk 0:00:06]}  Ke6 {[%clk 0:00:18]} 40. a4 {[%clk 0:00:06]}  f5 {[%clk 0:00:17]} 41. g3 {[%clk 0:00:05]}  Ke5 {[%clk 0:00:16]} 42. Kc3 {[%clk 0:00:06]}  Ra2 {[%clk 0:00:15]} 43. Kb3 {[%clk 0:00:06]}  Re2 {[%clk 0:00:16]} 44. Rf3 {[%clk 0:00:05]}  Ke4 {[%clk 0:00:17]} 45. Rf4+ {[%clk 0:00:05]}  Ke5 {[%clk 0:00:17]} 46. b5 {[%clk 0:00:04]}  Re1 {[%clk 0:00:17]} 47. bxc6 {[%clk 0:00:04]}  bxc6 {[%clk 0:00:17]} 48. Kb4 {[%clk 0:00:03]}  Rc1 {[%clk 0:00:14]} 49. Rf3 {[%clk 0:00:02]}  Ke4 {[%clk 0:00:13]} 50. Rf4+ {[%clk 0:00:03]}  Ke5 {[%clk 0:00:13]} 51. Ka5 {[%clk 0:00:03]}  Rxc5+ {[%clk 0:00:13]} 52. Ka6 {[%clk 0:00:03]}  Rc1 {[%clk 0:00:11]} 53. Kxa7 {[%clk 0:00:03]}  c5 {[%clk 0:00:12]} 54. a5 {[%clk 0:00:03]}  c4 {[%clk 0:00:13]} 55. a6 {[%clk 0:00:04]}  c3 {[%clk 0:00:07]} 56. Rc4 {[%clk 0:00:04]}  Kd5 {[%clk 0:00:08]} 57. Rc8 {[%clk 0:00:03]}  c2 {[%clk 0:00:08]} 58. Ka8 {[%clk 0:00:03]}  Kd4 {[%clk 0:00:08]} 0-1


[Site "https://www.chess.com"]

[Event "Titled Tuesday Blitz November 15 Early 2022"]
[White "Dixit, Nikhil"]
[Black "Jumabayev, Rinat"]
[WhiteFideId "5059534"]
[BlackFideId "13702661"]
[WhiteElo "2207"]
[BlackElo "2561"]
[Result "0-1"]
[Round "08"]
[TimeControl "180+1"]
[Date "2022.11.16"]
[WhiteClock "0:00:55"]
[BlackClock "0:00:42"]

1. e4 {[%clk 0:02:58]}  g6 {[%clk 0:02:58]} 2. d4 {[%clk 0:02:55]}  Bg7 {[%clk 0:02:58]} 3. Nc3 {[%clk 0:02:55]}  d6 {[%clk 0:02:59]} 4. h4 {[%clk 0:02:55]}  h5 {[%clk 0:02:59]} 5. Bg5 {[%clk 0:02:53]}  a6 {[%clk 0:02:59]} 6. Bc4 {[%clk 0:02:48]}  b5 {[%clk 0:02:58]} 7. Bb3 {[%clk 0:02:47]}  Nc6 {[%clk 0:02:11]} 8. Nge2 {[%clk 0:02:34]}  Nf6 {[%clk 0:01:53]} 9. Qd3 {[%clk 0:02:31]}  Bb7 {[%clk 0:01:45]} 10. f4 {[%clk 0:02:25]}  Ng4 {[%clk 0:01:41]} 11. a3 {[%clk 0:02:08]}  Qd7 {[%clk 0:01:31]} 12. O-O {[%clk 0:01:56]}  f6 {[%clk 0:01:27]} 13. e5 {[%clk 0:01:49]}  Qf5 {[%clk 0:01:19]} 14. Nd5 {[%clk 0:01:31]}  O-O-O {[%clk 0:01:03]} 15. Qc3 {[%clk 0:01:15]}  Kb8 {[%clk 0:00:56]} 16. Ng3 {[%clk 0:01:14]}  Qd7 {[%clk 0:00:55]} 17. a4 {[%clk 0:01:08]}  b4 {[%clk 0:00:46]} 18. Nxb4 {[%clk 0:01:05]}  fxg5 {[%clk 0:00:47]} 19. e6 {[%clk 0:01:00]}  Bxd4+ {[%clk 0:00:44]} 20. Qxd4 {[%clk 0:01:00]}  Nxd4 {[%clk 0:00:44]} 21. exd7 {[%clk 0:01:01]}  gxh4 {[%clk 0:00:44]} 22. c3 {[%clk 0:00:55]}  Nxb3 {[%clk 0:00:42]} 0-1


[Site "https://www.chess.com"]

[Event "Titled Tuesday Blitz November 15 Early 2022"]
[White "Dudzinski, Pawel"]
[Black "Mendonca, Mateus Nakajo"]
[WhiteFideId "1117890"]
[BlackFideId "2110954"]
[WhiteElo "2086"]
[BlackElo "2310"]
[Result "1/2-1/2"]
[Round "08"]
[TimeControl "180+1"]
[Date "2022.11.16"]
[WhiteClock "0:00:30"]
[BlackClock "0:00:24"]

1. e4 {[%clk 0:03:00]}  c5 {[%clk 0:02:59]} 2. c4 {[%clk 0:02:57]}  Nc6 {[%clk 0:02:53]} 3. Nc3 {[%clk 0:02:57]}  g6 {[%clk 0:02:51]} 4. g3 {[%clk 0:02:58]}  Bg7 {[%clk 0:02:51]} 5. Bg2 {[%clk 0:02:58]}  e6 {[%clk 0:02:52]} 6. Rb1 {[%clk 0:02:59]}  Nge7 {[%clk 0:02:52]} 7. Nge2 {[%clk 0:03:00]}  O-O {[%clk 0:02:52]} 8. O-O {[%clk 0:02:58]}  d6 {[%clk 0:02:52]} 9. a3 {[%clk 0:02:56]}  a5 {[%clk 0:02:51]} 10. Nb5 {[%clk 0:02:57]}  b6 {[%clk 0:02:39]} 11. d4 {[%clk 0:02:55]}  cxd4 {[%clk 0:02:28]} 12. Nexd4 {[%clk 0:02:56]}  Nxd4 {[%clk 0:02:21]} 13. Nxd4 {[%clk 0:02:57]}  Ba6 {[%clk 0:02:20]} 14. Nb5 {[%clk 0:02:45]}  d5 {[%clk 0:02:07]} 15. exd5 {[%clk 0:02:41]}  exd5 {[%clk 0:02:07]} 16. a4 {[%clk 0:01:50]}  dxc4 {[%clk 0:01:49]} 17. Bxa8 {[%clk 0:01:47]}  Qxa8 {[%clk 0:01:50]} 18. Nc7 {[%clk 0:01:46]}  Qb7 {[%clk 0:01:48]} 19. Nxa6 {[%clk 0:01:26]}  Qxa6 {[%clk 0:01:48]} 20. Qe2 {[%clk 0:01:17]}  Nc6 {[%clk 0:01:39]} 21. b3 {[%clk 0:01:10]}  Nd4 {[%clk 0:01:26]} 22. Qxc4 {[%clk 0:01:10]}  Qb7 {[%clk 0:01:22]} 23. Rd1 {[%clk 0:00:39]}  Nf3+ {[%clk 0:01:12]} 24. Kf1 {[%clk 0:00:38]}  Nxh2+ {[%clk 0:01:11]} 25. Kg1 {[%clk 0:00:38]}  Nf3+ {[%clk 0:01:10]} 26. Kf1 {[%clk 0:00:38]}  Re8 {[%clk 0:00:58]} 27. Be3 {[%clk 0:00:30]}  Nh2+ {[%clk 0:00:49]} 28. Kg1 {[%clk 0:00:29]}  Nf3+ {[%clk 0:00:49]} 29. Kf1 {[%clk 0:00:29]}  Nh2+ {[%clk 0:00:25]} 30. Kg1 {[%clk 0:00:29]}  Nf3+ {[%clk 0:00:24]} 31. Kf1 {[%clk 0:00:30]} 1/2-1/2


[Site "https://www.chess.com"]

[Event "Titled Tuesday Blitz November 15 Early 2022"]
[White "Fernandez Guillen, Ernesto J."]
[Black "Zhigalko, Sergei"]
[WhiteFideId "3512428"]
[BlackFideId "13502956"]
[WhiteElo "2450"]
[BlackElo "2662"]
[Result "1-0"]
[Round "08"]
[TimeControl "180+1"]
[Date "2022.11.16"]
[WhiteClock "0:00:15"]
[BlackClock "0:00:01"]

1. e4 {[%clk 0:03:00]}  c5 {[%clk 0:02:57]} 2. Nf3 {[%clk 0:02:59]}  Nc6 {[%clk 0:02:58]} 3. Nc3 {[%clk 0:02:58]}  Nf6 {[%clk 0:02:58]} 4. e5 {[%clk 0:02:58]}  Ng4 {[%clk 0:02:58]} 5. Qe2 {[%clk 0:02:54]}  f6 {[%clk 0:02:58]} 6. exf6 {[%clk 0:02:52]}  Nxf6 {[%clk 0:02:58]} 7. g3 {[%clk 0:02:49]}  d5 {[%clk 0:02:51]} 8. d3 {[%clk 0:02:48]}  Bg4 {[%clk 0:02:49]} 9. Bg2 {[%clk 0:02:41]}  Nd4 {[%clk 0:02:41]} 10. Qd1 {[%clk 0:02:41]}  Qd7 {[%clk 0:02:38]} 11. O-O {[%clk 0:02:37]}  h5 {[%clk 0:02:21]} 12. Bf4 {[%clk 0:01:49]}  O-O-O {[%clk 0:01:08]} 13. a4 {[%clk 0:01:28]}  g5 {[%clk 0:00:51]} 14. Be5 {[%clk 0:01:01]}  Qf5 {[%clk 0:00:49]} 15. Bxd4 {[%clk 0:01:00]}  cxd4 {[%clk 0:00:48]} 16. Nxd4 {[%clk 0:00:39]}  Qd7 {[%clk 0:00:43]} 17. Qe1 {[%clk 0:00:35]}  h4 {[%clk 0:00:39]} 18. Qe5 {[%clk 0:00:34]}  Qc7 {[%clk 0:00:12]} 19. Qxc7+ {[%clk 0:00:32]}  Kxc7 {[%clk 0:00:13]} 20. Rfe1 {[%clk 0:00:31]}  hxg3 {[%clk 0:00:13]} 21. hxg3 {[%clk 0:00:32]}  a6 {[%clk 0:00:03]} 22. Ne6+ {[%clk 0:00:32]}  Bxe6 {[%clk 0:00:03]} 23. Rxe6 {[%clk 0:00:33]}  g4 {[%clk 0:00:02]} 24. Rae1 {[%clk 0:00:32]}  Rh5 {[%clk 0:00:02]} 25. b4 {[%clk 0:00:31]}  Kd7 {[%clk 0:00:02]} 26. b5 {[%clk 0:00:21]}  Rc8 {[%clk 0:00:02]} 27. Rxf6 {[%clk 0:00:14]}  exf6 {[%clk 0:00:01]} 28. Nxd5 {[%clk 0:00:15]} 1-0


[Site "https://www.chess.com"]

[Event "Titled Tuesday Blitz November 15 Early 2022"]
[White "Fernandez Siles, Luis"]
[Black "Aldokhin, Ivan"]
[WhiteFideId "2209420"]
[BlackFideId "24115720"]
[WhiteElo "2186"]
[BlackElo "2313"]
[Result "0-1"]
[Round "08"]
[TimeControl "180+1"]
[Date "2022.11.16"]
[WhiteClock "0:00:04"]
[BlackClock "0:00:02"]

1. d4 {[%clk 0:03:00]}  Nf6 {[%clk 0:02:57]} 2. c4 {[%clk 0:03:00]}  g6 {[%clk 0:02:57]} 3. Nc3 {[%clk 0:02:59]}  Bg7 {[%clk 0:02:57]} 4. e4 {[%clk 0:02:58]}  d6 {[%clk 0:02:58]} 5. Nf3 {[%clk 0:02:59]}  O-O {[%clk 0:02:57]} 6. Be2 {[%clk 0:02:59]}  Nc6 {[%clk 0:02:54]} 7. d5 {[%clk 0:02:53]}  Nb4 {[%clk 0:02:54]} 8. O-O {[%clk 0:02:42]}  Re8 {[%clk 0:02:53]} 9. Be3 {[%clk 0:02:30]}  e6 {[%clk 0:02:53]} 10. dxe6 {[%clk 0:02:27]}  Bxe6 {[%clk 0:02:49]} 11. Nd4 {[%clk 0:02:16]}  Bd7 {[%clk 0:02:49]} 12. f3 {[%clk 0:02:15]}  a5 {[%clk 0:02:37]} 13. Qd2 {[%clk 0:01:56]}  Nh5 {[%clk 0:02:30]} 14. Ndb5 {[%clk 0:01:43]}  Na6 {[%clk 0:02:18]} 15. Rad1 {[%clk 0:01:38]}  Bc6 {[%clk 0:01:49]} 16. Bd4 {[%clk 0:01:14]}  Qh4 {[%clk 0:01:33]} 17. Bxg7 {[%clk 0:01:10]}  Kxg7 {[%clk 0:01:32]} 18. Nd5 {[%clk 0:01:03]}  Bxd5 {[%clk 0:01:24]} 19. cxd5 {[%clk 0:01:02]}  Re7 {[%clk 0:01:19]} 20. Qxa5 {[%clk 0:00:42]}  f5 {[%clk 0:01:08]} 21. Bd3 {[%clk 0:00:22]}  Nf4 {[%clk 0:00:56]} 22. Qc3+ {[%clk 0:00:20]}  Kg8 {[%clk 0:00:49]} 23. g3 {[%clk 0:00:20]}  Qg5 {[%clk 0:00:46]} 24. Qd2 {[%clk 0:00:19]}  Nh3+ {[%clk 0:00:36]} 25. Kg2 {[%clk 0:00:19]}  Qxd2+ {[%clk 0:00:32]} 26. Rxd2 {[%clk 0:00:20]}  fxe4 {[%clk 0:00:32]} 27. Bxe4 {[%clk 0:00:19]}  Ng5 {[%clk 0:00:32]} 28. Bc2 {[%clk 0:00:15]}  Nb4 {[%clk 0:00:23]} 29. Bb3 {[%clk 0:00:15]}  Na6 {[%clk 0:00:24]} 30. Nd4 {[%clk 0:00:15]}  Nc5 {[%clk 0:00:22]} 31. h4 {[%clk 0:00:13]}  Nf7 {[%clk 0:00:21]} 32. Rc1 {[%clk 0:00:13]}  Ne5 {[%clk 0:00:18]} 33. Ne6 {[%clk 0:00:13]}  Ned3 {[%clk 0:00:17]} 34. Rc3 {[%clk 0:00:11]}  Nxe6 {[%clk 0:00:10]} 35. dxe6 {[%clk 0:00:10]}  Nc5 {[%clk 0:00:10]} 36. Bd5 {[%clk 0:00:09]}  c6 {[%clk 0:00:07]} 37. Bb3 {[%clk 0:00:08]}  Nxb3 {[%clk 0:00:07]} 38. Rxb3 {[%clk 0:00:08]}  Rxe6 {[%clk 0:00:06]} 39. Rxb7 {[%clk 0:00:07]}  Rxa2 {[%clk 0:00:07]} 40. Rc2 {[%clk 0:00:06]}  c5 {[%clk 0:00:06]} 41. Rd2 {[%clk 0:00:05]}  Ra6 {[%clk 0:00:05]} 42. Rc2 {[%clk 0:00:03]}  Rc6 {[%clk 0:00:05]} 43. b4 {[%clk 0:00:03]}  c4 {[%clk 0:00:04]} 44. b5 {[%clk 0:00:03]}  Rc8 {[%clk 0:00:03]} 45. b6 {[%clk 0:00:04]}  d5 {[%clk 0:00:03]} 46. Rc7 {[%clk 0:00:03]}  Rb8 {[%clk 0:00:04]} 47. b7 {[%clk 0:00:03]}  Ree8 {[%clk 0:00:02]} 48. Rd2 {[%clk 0:00:04]}  Red8 {[%clk 0:00:02]} 0-1


[Site "https://www.chess.com"]